fUST/lending_fUST_20240717
["ID","MTS","AMOUNT","RATE_DAILY","PERIOD"]
[332456737,1721203858163,-151.0,0.00021917,2]
[332456738,1721203858172,-151.0,0.00021917,2]
[332456739,1721203858182,-151.0,0.00021917,2]
[332456740,1721203858192,-151.0,0.00021917,2]
[332456741,1721203858201,-151.0,0.00021917,2]
[332456742,1721203858210,-151.0,0.00021917,2]
[332456743,1721203858219,-151.0,0.00021917,2]
[332456744,1721203858228,-151.0,0.00021917,2]
[332456745,1721203858237,-151.0,0.00021917,2]
[332456746,1721203858246,-151.0,0.00021917,2]
[332456747,1721203858256,-151.0,0.00021917,2]
[332456748,1721203858270,-151.0,0.00021917,2]
[332456749,1721203858279,-207.220562,0.00021917,2]
[332456750,1721203858289,-151.0,0.00021917,2]
[332456751,1721203858298,-151.0,0.00021917,2]
[332456752,1721203858308,-151.0,0.00021917,2]
[332456753,1721203858317,-500.0,0.00021917,2]
[332456754,1721203858327,-151.0,0.00021917,2]
[332456755,1721203858336,-151.0,0.00021917,2]
[332456756,1721203858346,-174.323921,0.00021917,2]
[332456757,1721203858356,-158.083408,0.00021917,2]
[332456758,1721203858366,-175.340423,0.00021917,2]
[332456759,1721203858375,-175.340423,0.00021917,2]
[332456760,1721203858385,-175.340423,0.00021917,2]
[332456761,1721203858397,-175.340423,0.00021917,2]
[332456762,1721203858406,-175.340423,0.00021917,2]
[332456763,1721203858415,-175.340423,0.00021917,2]
[332456764,1721203858424,-175.340423,0.00021917,2]
[332456765,1721203858433,-175.340423,0.00021917,2]
[332456766,1721203858443,-175.340423,0.00021917,2]
[332456767,1721203858452,-175.340423,0.00021917,2]
[332456768,1721203858462,-175.340423,0.00021917,2]
[332456769,1721203858471,-175.340423,0.00021917,2]
[332456770,1721203858480,-175.340423,0.00021917,2]
[332456771,1721203858489,-175.340423,0.00021917,2]
[332456772,1721203858500,-175.340423,0.00021917,2]
[332456773,1721203858511,-175.340423,0.00021917,2]
[332456774,1721203858523,-175.340423,0.00021917,2]
[332456775,1721203858534,-175.340423,0.00021917,2]
[332456776,1721203858544,-175.340423,0.00021917,2]
[332456777,1721203858554,-175.340423,0.00021917,2]
[332456778,1721203858564,-500.0,0.00021917,2]
[332456779,1721203858576,-500.0,0.00021917,2]
[332456780,1721203858587,-339.850947,0.00021917,2]
[332456781,1721203858600,-339.850947,0.00021917,2]
[332456782,1721203858609,-339.850947,0.00021917,2]
[332456783,1721203858620,-339.850947,0.00021917,2]
[332456784,1721203858630,-339.850947,0.00021917,2]
[332456785,1721203858640,-339.850947,0.00021917,2]
[332456786,1721203858654,-339.850947,0.00021917,2]
[332456787,1721203858664,-339.850947,0.00021917,2]
[332456788,1721203858674,-339.850947,0.00021917,2]
[332456789,1721203858683,-339.850947,0.00021917,2]
[332456790,1721203858692,-339.850947,0.00021917,2]
[332456791,1721203858701,-339.850947,0.00021917,2]
[332456792,1721203858711,-339.850947,0.00021917,2]
[332456793,1721203858720,-339.850947,0.00021917,2]
[332456794,1721203858731,-339.850947,0.00021917,2]
[332456795,1721203858741,-339.850947,0.00021917,2]
[332456796,1721203858751,-339.850947,0.00021917,2]
[332456797,1721203858760,-339.850947,0.00021917,2]
[332456798,1721203858770,-339.850947,0.00021917,2]
[332456799,1721203858779,-339.850941,0.00021917,2]
[332456800,1721203858790,-390.576568,0.00021917,2]
[332456801,1721203858799,-390.576568,0.00021917,2]
[332456802,1721203858809,-390.576568,0.00021917,2]
[332456803,1721203858819,-390.576568,0.00021917,2]
[332456804,1721203858828,-390.576568,0.00021917,2]
[332456805,1721203858838,-390.576568,0.00021917,2]
[332456806,1721203858847,-390.576568,0.00021917,2]
[332456807,1721203858856,-390.576568,0.00021917,2]
[332456808,1721203858866,-390.576568,0.00021917,2]
[332456809,1721203858876,-390.576568,0.00021917,2]
[332456810,1721203858885,-390.576568,0.00021917,2]
[332456811,1721203858895,-390.576568,0.00021917,2]
[332456812,1721203858904,-390.576568,0.00021917,2]
[332456813,1721203858913,-390.576568,0.00021917,2]
[332456814,1721203858923,-390.576568,0.00021917,2]
[332456815,1721203858932,-390.576568,0.00021917,2]
[332456816,1721203858941,-390.576568,0.00021917,2]
[332456817,1721203858951,-390.576568,0.00021917,2]
[332456818,1721203858961,-390.576568,0.00021917,2]
[332456819,1721203858971,-390.576565,0.00021917,2]
[332456820,1721203858981,-151.0,0.00021917,2]
[332456821,1721203858990,-151.0,0.00021917,2]
[332456822,1721203858999,-151.0,0.00021917,2]
[332456823,1721203859009,-151.0,0.00021917,2]
[332456824,1721203859019,-151.0,0.00021917,2]
[332456825,1721203859029,-151.0,0.00021917,2]
[332456826,1721203859038,-151.0,0.00021917,2]
[332456827,1721203859048,-151.0,0.00021917,2]
[332456828,1721203859057,-151.0,0.00021917,2]
[332456829,1721203859066,-151.0,0.00021917,2]
[332456830,1721203859076,-151.0,0.00021917,2]
[332456831,1721203859085,-171.257874,0.00021917,2]
[332456832,1721203859094,-855.148068,0.00021917,2]
[332456833,1721203859106,-855.148068,0.00021917,2]
[332456834,1721203859116,-855.148068,0.00021917,2]
[332456835,1721203859126,-855.148068,0.00021917,2]
[332456836,1721203859136,-855.148068,0.00021917,2]
[332456837,1721203859146,-855.148068,0.00021917,2]
[332456838,1721203859159,-855.148068,0.00021917,2]
[332456839,1721203859168,-855.148068,0.00021917,2]
[332456840,1721203859178,-855.148068,0.00021917,2]
[332456841,1721203859188,-855.148068,0.00021917,2]
[332456842,1721203859198,-855.148068,0.00021917,2]
[332456843,1721203859207,-855.148068,0.00021917,2]
[332456844,1721203859219,-199.30175173,0.00021917,2]
[332456845,1721203859236,-655.84631627,0.00021917,2]
[332456846,1721203859246,-855.148068,0.00021917,2]
[332456847,1721203859258,-855.148068,0.00021917,2]
[332456848,1721203859268,-855.148068,0.00021917,2]
[332456849,1721203859278,-855.148068,0.00021917,2]
[332456850,1721203859287,-855.148068,0.00021917,2]
[332456851,1721203859296,-649.67816775,0.00021917,2]
[332456857,1721203950157,610.635225,0.00015,2]
[332456879,1721204276951,523.89058544,0.00018182,7]
[332456882,1721204416792,795.57801757,0.00014999,2]
[332456884,1721204452838,521.06468489,0.0001818,7]
[332456885,1721204521397,9635.21602955,0.00014998,2]
[332456888,1721204545474,208.34548482,0.00014999,2]
[332456889,1721204552288,1500.0,0.00014999,2]
[332456892,1721204597724,716.93671603,0.00014999,2]
[332456896,1721204654129,965.24119257,0.00014999,2]
[332456901,1721204896795,196.54650804,0.00014999,2]
[332456908,1721204928979,19081.6576277,0.00024,60]
[332456948,1721205032140,-300.0,0.00016254,2]
[332456949,1721205032150,-5996.50314309,0.00016255,2]
[332457031,1721205038337,-15266.79993167,0.00016255,2]
[332457032,1721205038347,-156.95400262,0.00017159,2]
[332457033,1721205038356,-420.0,0.00017879,2]
[332457034,1721205038366,-250.0,0.00018001,2]
[332457035,1721205038375,-271.0912814,0.0001811,2]
[332457036,1721205038384,-191.21156861,0.00018798,2]
[332457037,1721205038393,-3053.97290948,0.000189,2]
[332457038,1721205038403,-163.677499,0.00019446,2]
[332457039,1721205038412,-24900.0,0.00019492,2]
[332457040,1721205038421,-5106.02975951,0.00019567,2]
[332457041,1721205038430,-587.0,0.00019667,2]
[332457042,1721205038440,-1333.166751,0.0001974,2]
[332457043,1721205038449,-4975.97168336,0.0002,2]
[332457044,1721205038458,-245.87964659,0.0002,2]
[332457045,1721205038467,-395.23905296,0.000203,2]
[332457046,1721205038477,-293.6566525,0.00020822,2]
[332457047,1721205038486,-293.6566525,0.00020822,2]
[332457048,1721205038495,-293.6566525,0.00020822,2]
[332457049,1721205038505,-293.6566525,0.00020822,2]
[332457050,1721205038517,-293.6566525,0.00020822,2]
[332457051,1721205038526,-293.6566525,0.00020822,2]
[332457052,1721205038535,-293.6566525,0.00020822,2]
[332457053,1721205038544,-164.3,0.00020833,2]
[332457054,1721205038554,-183.53494468,0.00021,2]
[332457055,1721205038564,-1000.0,0.00021,9]
[332457056,1721205038573,-257.83877754,0.00021,2]
[332457057,1721205038583,-5805.1798355,0.00021,2]
[332457058,1721205038592,-610.876608,0.00021096,2]
[332457059,1721205038601,-293.6566525,0.00021178,2]
[332457060,1721205038611,-293.6566525,0.00021178,2]
[332457061,1721205038620,-164.3,0.00021257,2]
[332457062,1721205038630,-206.4665977,0.00021315,2]
[332457063,1721205038639,-206.4665977,0.00021315,2]
[332457064,1721205038649,-206.4665977,0.00021315,2]
[332457065,1721205038658,-206.4665977,0.00021315,2]
[332457066,1721205038667,-205.0119558,0.00021315,2]
[332457067,1721205038677,-299.0,0.00021634,2]
[332457068,1721205038687,-293.6566525,0.00021644,2]
[332457069,1721205038696,-293.6566525,0.00021644,2]
[332457070,1721205038705,-293.6566525,0.00021644,2]
[332457071,1721205038714,-293.6566525,0.00021644,2]
[332457072,1721205038723,-293.6566525,0.00021644,2]
[332457073,1721205038733,-293.6566525,0.00021644,2]
[332457074,1721205038742,-293.6566525,0.00021644,2]
[332457075,1721205038752,-585.3882368,0.00021644,2]
[332457076,1721205038765,-164.3,0.00021681,2]
[332457077,1721205038774,-5106.02975951,0.00021757,2]
[332457078,1721205038784,-158.10330029,0.00021849,2]
[332457079,1721205038793,-9597.05426228,0.0002185,5]
[332457080,1721205038814,-146785.97514164,0.0002185,2]
[332457081,1721205038825,-206.4665977,0.00021863,2]
[332457082,1721205038835,-206.4665977,0.00021863,2]
[332457083,1721205038845,-206.4665977,0.00021863,2]
[332457084,1721205038855,-206.4665977,0.00021863,2]
[332457085,1721205038865,-206.4665977,0.00021863,2]
[332457086,1721205038876,-206.4665977,0.00021863,2]
[332457087,1721205038886,-206.4665977,0.00021863,2]
[332457088,1721205038896,-160.0,0.00021903,3]
[332457089,1721205038906,-293.2743038,0.00021907,3]
[332457090,1721205038916,-500.0,0.00021916,2]
[332457091,1721205038926,-402.00776922,0.00021916,2]
[332457092,1721205038937,-500.0,0.00021916,2]
[332457093,1721205038947,-230.5202642,0.00021916,2]
[332457094,1721205038958,-500.0,0.00021916,2]
[332457095,1721205038968,-500.0,0.00021916,2]
[332457096,1721205038979,-182.07359017,0.00021916,2]
[332457097,1721205038992,-500.0,0.00021916,2]
[332457098,1721205039011,-500.0,0.00021916,2]
[332457099,1721205039021,-531.06798831,0.00021916,2]
[332457100,1721205039030,-500.0,0.00021916,2]
[332457101,1721205039042,-500.0,0.00021917,2]
[332457102,1721205039052,-647.53,0.00021917,2]
[332457103,1721205039062,-226.06683349,0.00021917,2]
[332457104,1721205039071,-500.0,0.00021917,2]
[332457105,1721205039082,-426.57305643,0.00021917,2]
[332457106,1721205039091,-578.44,0.00021917,2]
[332457107,1721205039101,-500.0,0.00021917,2]
[332457108,1721205039111,-428.94151396,0.00021917,2]
[332457109,1721205039120,-8627.18,0.00021917,2]
[332457110,1721205039130,-1559.19,0.00021917,2]
[332457111,1721205039140,-500.0,0.00021917,2]
[332457112,1721205039150,-500.0,0.00021917,2]
[332457113,1721205039160,-955.58,0.00021917,2]
[332457114,1721205039169,-955.58,0.00021917,2]
[332457115,1721205039178,-755.18757147,0.00021917,2]
[332457116,1721205039442,-200.39242853,0.00021917,2]
[332457117,1721205039451,-955.58,0.00021917,2]
[332457118,1721205039460,-955.58,0.00021917,2]
[332457119,1721205039470,-955.58,0.00021917,2]
[332457120,1721205039479,-955.58,0.00021917,2]
[332457121,1721205039488,-955.58,0.00021917,2]
[332457122,1721205039497,-955.58,0.00021917,2]
[332457123,1721205039508,-955.58,0.00021917,2]
[332457124,1721205039518,-955.58,0.00021917,2]
[332457125,1721205039527,-955.58,0.00021917,2]
[332457126,1721205039536,-955.58,0.00021917,2]
[332457127,1721205039545,-955.58,0.00021917,2]
[332457128,1721205039555,-542.64,0.00021917,2]
[332457129,1721205039569,-955.58,0.00021917,2]
[332457130,1721205039578,-955.58,0.00021917,2]
[332457131,1721205039587,-955.58,0.00021917,2]
[332457132,1721205039597,-955.58,0.00021917,2]
[332457133,1721205039607,-955.58,0.00021917,2]
[332457134,1721205039617,-955.58,0.00021917,2]
[332457135,1721205039627,-500.0,0.00021917,2]
[332457136,1721205039636,-500.0,0.00021917,2]
[332457137,1721205039645,-500.0,0.00021917,2]
[332457138,1721205039655,-500.0,0.00021917,2]
[332457139,1721205039664,-500.0,0.00021917,2]
[332457140,1721205039674,-500.0,0.00021917,2]
[332457141,1721205039684,-286.58,0.00021917,2]
[332457142,1721205039693,-501.20182589,0.00021917,2]
[332457143,1721205039703,-500.0,0.00021917,2]
[332457144,1721205039713,-1008.71,0.00021917,10]
[332457145,1721205039725,-1008.71,0.00021917,10]
[332457147,1721205039735,-1008.71,0.00021917,10]
[332457148,1721205039745,-1008.71,0.00021917,10]
[332457149,1721205039755,-1008.71,0.00021917,10]
[332457150,1721205039768,-1008.71,0.00021917,10]
[332457151,1721205039777,-1008.71,0.00021917,10]
[332457152,1721205039787,-1008.71,0.00021917,10]
[332457154,1721205039796,-1008.71,0.00021917,10]
[332457155,1721205039805,-1008.71,0.00021917,10]
[332457156,1721205039815,-1008.71,0.00021917,10]
[332457157,1721205039824,-1008.71,0.00021917,10]
[332457158,1721205039834,-1008.71,0.00021917,10]
[332457159,1721205039845,-1008.71,0.00021917,10]
[332457161,1721205039855,-1008.71,0.00021917,10]
[332457162,1721205039864,-1008.71,0.00021917,10]
[332457163,1721205039873,-1008.71,0.00021917,10]
[332457164,1721205039883,-1008.71,0.00021917,10]
[332457165,1721205039891,-1008.71,0.00021917,10]
[332457166,1721205039900,-1008.71,0.00021917,10]
[332457167,1721205039910,-1008.71,0.00021917,10]
[332457168,1721205039919,-1008.71,0.00021917,10]
[332457169,1721205039928,-1008.71,0.00021917,10]
[332457170,1721205039940,-1008.75585499,0.00021917,10]
[332457171,1721205039950,-500.71151987,0.00021917,2]
[332457172,1721205039960,-500.0,0.00021917,2]
[332457174,1721205039969,-511.99518134,0.00021917,2]
[332457175,1721205039979,-287.84635219,0.00021917,2]
[332457180,1721205040708,-212.15364781,0.00021917,2]
[332457181,1721205040718,-500.0,0.00021917,2]
[332457182,1721205040728,-500.0,0.00021917,2]
[332457183,1721205040737,-500.0,0.00021917,2]
[332457184,1721205040747,-500.0,0.00021917,2]
[332457185,1721205040759,-500.0,0.00021917,2]
[332457186,1721205040769,-500.0,0.00021917,2]
[332457187,1721205040779,-501.178986,0.00021917,2]
[332457188,1721205040790,-505.46640669,0.00021917,2]
[332457189,1721205040799,-500.0,0.00021917,2]
[332457190,1721205040809,-242.71891915,0.00021917,2]
[332457191,1721205040819,-500.0,0.00021917,2]
[332457192,1721205040830,-500.0,0.00021917,2]
[332457193,1721205040840,-500.0,0.00021917,2]
[332457194,1721205040852,-500.0,0.00021917,2]
[332457195,1721205040861,-500.0,0.00021917,2]
[332457196,1721205040872,-500.0,0.00021917,2]
[332457197,1721205040883,-500.0,0.00021917,2]
[332457198,1721205040893,-501.72558618,0.00021917,2]
[332457199,1721205040904,-500.0,0.00021917,2]
[332457200,1721205040914,-500.0,0.00021917,2]
[332457201,1721205040926,-500.0,0.00021917,2]
[332457202,1721205040937,-500.0,0.00021917,2]
[332457203,1721205040958,-500.0,0.00021917,2]
[332457204,1721205040970,-500.0,0.00021917,2]
[332457205,1721205040982,-500.0,0.00021917,2]
[332457206,1721205040995,-500.0,0.00021917,2]
[332457207,1721205041006,-500.0,0.00021917,2]
[332457208,1721205041019,-500.0,0.00021917,2]
[332457209,1721205041029,-500.0,0.00021917,2]
[332457210,1721205041039,-500.0,0.00021917,2]
[332457211,1721205041049,-500.0,0.00021917,2]
[332457212,1721205041059,-500.0,0.00021917,2]
[332457213,1721205041070,-500.0,0.00021917,2]
[332457214,1721205041083,-500.0,0.00021917,2]
[332457215,1721205041095,-500.0,0.00021917,2]
[332457216,1721205041106,-500.0,0.00021917,2]
[332457217,1721205041117,-200.0,0.00021917,2]
[332457218,1721205041127,-500.0,0.00021917,2]
[332457219,1721205041138,-503.77183538,0.00021917,2]
[332457220,1721205041148,-500.0,0.00021917,2]
[332457221,1721205041158,-500.0,0.00021917,2]
[332457222,1721205041168,-501.9189305,0.00021917,2]
[332457223,1721205041178,-500.0,0.00021917,2]
[332457224,1721205041189,-500.0,0.00021917,2]
[332457225,1721205041199,-640.73785057,0.00021917,2]
[332457226,1721205041209,-500.00313708,0.00021917,2]
[332457227,1721205041449,-500.0,0.00021917,2]
[332457228,1721205041460,-500.0,0.00021917,2]
[332457229,1721205041471,-500.0,0.00021917,2]
[332457230,1721205041481,-500.0,0.00021917,2]
[332457231,1721205041492,-507.93,0.00021917,2]
[332457232,1721205041502,-502.8734352,0.00021917,2]
[332457233,1721205041512,-500.0,0.00021917,2]
[332457234,1721205041522,-438.02356023,0.00021917,2]
[332457235,1721205041532,-500.0,0.00021917,2]
[332457236,1721205041541,-500.0,0.00021917,2]
[332457237,1721205041551,-499.97974591,0.00021917,2]
[332457238,1721205041561,-500.0,0.00021917,2]
[332457239,1721205041570,-500.0,0.00021917,2]
[332457240,1721205041580,-500.0,0.00021917,2]
[332457241,1721205041591,-500.0,0.00021917,2]
[332457242,1721205041601,-2000.0,0.00021917,2]
[332457243,1721205041611,-679.69,0.00021917,2]
[332457244,1721205041621,-298.18706401,0.00021917,2]
[332457245,1721205041631,-154.82490109,0.00021917,2]
[332457246,1721205041640,-503.04754031,0.00021917,2]
[332457247,1721205041650,-500.0,0.00021917,2]
[332457248,1721205041659,-507.95315657,0.00021917,2]
[332457249,1721205041669,-503.17151581,0.00021917,2]
[332457250,1721205041680,-153.0,0.00021918,2]
[332457251,1721205041690,-153.0,0.00021918,2]
[332457252,1721205041700,-153.0,0.00021918,2]
[332457253,1721205041712,-153.0,0.00021918,2]
[332457254,1721205041723,-153.0,0.00021918,2]
[332457255,1721205041733,-153.0,0.00021918,2]
[332457256,1721205041742,-153.0,0.00021918,2]
[332457257,1721205041752,-153.0,0.00021918,2]
[332457258,1721205041765,-153.0,0.00021918,2]
[332457259,1721205041777,-153.0,0.00021918,2]
[332457260,1721205041787,-153.0,0.00021918,2]
[332457261,1721205041797,-153.0,0.00021918,2]
[332457262,1721205041809,-153.0,0.00021918,2]
[332457263,1721205041819,-153.0,0.00021918,2]
[332457264,1721205041832,-153.0,0.00021918,2]
[332457265,1721205041842,-153.0,0.00021918,2]
[332457266,1721205041852,-153.0,0.00021918,2]
[332457267,1721205041862,-153.0,0.00021918,2]
[332457268,1721205041872,-153.0,0.00021918,2]
[332457269,1721205041881,-153.0,0.00021918,2]
[332457270,1721205041891,-153.0,0.00021918,2]
[332457271,1721205041900,-153.0,0.00021918,2]
[332457272,1721205041910,-153.0,0.00021918,2]
[332457273,1721205041921,-153.0,0.00021918,2]
[332457274,1721205041931,-153.0,0.00021918,2]
[332457275,1721205041941,-153.0,0.00021918,2]
[332457276,1721205041951,-153.0,0.00021918,2]
[332457277,1721205041961,-153.0,0.00021918,2]
[332457278,1721205041971,-153.0,0.00021918,2]
[332457279,1721205041981,-13.83308763,0.00021918,2]
[332457300,1721205043250,-139.16691237,0.00021918,2]
[332457301,1721205043259,-153.0,0.00021918,2]
[332457302,1721205043269,-153.0,0.00021918,2]
[332457303,1721205043279,-153.0,0.00021918,2]
[332457304,1721205043288,-153.0,0.00021918,2]
[332457305,1721205043298,-153.0,0.00021918,2]
[332457306,1721205043307,-153.0,0.00021918,2]
[332457307,1721205043317,-153.0,0.00021918,2]
[332457308,1721205043326,-153.0,0.00021918,2]
[332457309,1721205043335,-153.0,0.00021918,2]
[332457310,1721205043344,-153.0,0.00021918,2]
[332457311,1721205043354,-153.0,0.00021918,2]
[332457312,1721205043363,-153.0,0.00021918,2]
[332457313,1721205043372,-153.0,0.00021918,2]
[332457314,1721205043382,-153.0,0.00021918,2]
[332457315,1721205043391,-153.0,0.00021918,2]
[332457316,1721205043400,-153.0,0.00021918,2]
[332457317,1721205043410,-153.0,0.00021918,2]
[332457318,1721205043419,-153.0,0.00021918,2]
[332457319,1721205043428,-153.0,0.00021918,2]
[332457320,1721205043438,-153.0,0.00021918,2]
[332457321,1721205043447,-153.0,0.00021918,2]
[332457322,1721205043457,-153.0,0.00021918,2]
[332457323,1721205043466,-153.0,0.00021918,2]
[332457324,1721205043476,-153.0,0.00021918,2]
[332457325,1721205043486,-153.0,0.00021918,2]
[332457326,1721205043496,-153.0,0.00021918,2]
[332457327,1721205043506,-153.0,0.00021918,2]
[332457328,1721205043516,-153.0,0.00021918,2]
[332457329,1721205043526,-153.0,0.00021918,2]
[332457330,1721205043535,-153.0,0.00021918,2]
[332457331,1721205043544,-153.0,0.00021918,2]
[332457332,1721205043554,-43.25159538,0.00021918,2]
[332457333,1721205043566,-109.74840462,0.00021918,2]
[332457334,1721205043575,-153.0,0.00021918,2]
[332457335,1721205043585,-153.0,0.00021918,2]
[332457336,1721205043596,-166.666666,0.00021918,2]
[332457337,1721205043607,-990.96,0.00021939,2]
[332457338,1721205043617,-150.0,0.00021972,2]
[332457339,1721205043627,-1407.0,0.00021972,2]
[332457340,1721205043636,-152.157,0.00021972,2]
[332457341,1721205043646,-16360.19739539,0.00022,2]
[332457342,1721205043691,-491.55661394,0.00022,2]
[332457361,1721205046382,-293.6566525,0.00020822,2]
[332457362,1721205046392,-13631.43349678,0.00022,2]
[332457363,1721205046402,-154.74467129,0.00022,2]
[332457364,1721205046411,-7815.42768249,0.00022,2]
[332457365,1721205046421,-5379.09742099,0.00022,2]
[332457366,1721205046431,-4000.0,0.00022,3]
[332457367,1721205046442,-3336.22560356,0.00022,2]
[332457368,1721205046453,-2988.40299718,0.00022,7]
[332457369,1721205046463,-1000.0,0.00022,22]
[332457370,1721205046473,-206.4665977,0.00022,2]
[332457371,1721205046482,-206.4665977,0.00022,2]
[332457372,1721205046492,-249.34786036,0.00022016,2]
[332457373,1721205046501,-308.05469685,0.00022016,2]
[332457374,1721205046511,-163.55956383,0.00022016,2]
[332457375,1721205046527,-156.399762,0.00022029,2]
[332457376,1721205046539,-164.3,0.00022106,2]
[332457377,1721205046549,-151.0,0.00022106,2]
[332457378,1721205046559,-615.66,0.0002217,2]
[332457379,1721205046570,-500.0,0.0002217,2]
[332457380,1721205046584,-500.0,0.0002217,2]
[332457381,1721205046594,-500.0,0.0002217,2]
[332457382,1721205046604,-500.0,0.0002217,2]
[332457383,1721205046615,-500.0,0.0002217,2]
[332457384,1721205046627,-671.14,0.0002217,2]
[332457385,1721205046638,-299.301823,0.0002217,7]
[332457386,1721205046648,-299.301823,0.0002217,7]
[332457387,1721205046658,-151.0,0.0002217,7]
[332457388,1721205046667,-615.66,0.0002218,2]
[332457389,1721205046677,-615.66,0.0002218,2]
[332457390,1721205046687,-500.0,0.0002218,2]
[332457391,1721205046698,-500.0,0.0002218,2]
[332457392,1721205046708,-500.0,0.0002218,2]
[332457393,1721205046719,-500.0,0.0002218,2]
[332457394,1721205046729,-500.0,0.0002218,2]
[332457395,1721205046740,-500.0,0.0002218,2]
[332457396,1721205046750,-500.0,0.0002218,2]
[332457397,1721205046759,-500.0,0.0002218,2]
[332457398,1721205046769,-500.0,0.0002218,2]
[332457399,1721205046780,-671.14,0.0002218,2]
[332457400,1721205046792,-671.14,0.0002218,2]
[332457401,1721205046802,-1466.371519,0.00022181,3]
[332457402,1721205046811,-615.66,0.0002219,2]
[332457403,1721205046822,-615.66,0.0002219,2]
[332457404,1721205046833,-615.66,0.0002219,2]
[332457405,1721205046845,-615.66,0.0002219,2]
[332457406,1721205046855,-615.66,0.0002219,2]
[332457407,1721205046865,-500.0,0.0002219,2]
[332457408,1721205046877,-500.0,0.0002219,2]
[332457409,1721205046889,-500.0,0.0002219,2]
[332457410,1721205046900,-500.0,0.0002219,2]
[332457411,1721205046910,-500.0,0.0002219,2]
[332457412,1721205046922,-500.0,0.0002219,2]
[332457413,1721205046932,-260.94,0.0002219,2]
[332457414,1721205046942,-500.0,0.0002219,2]
[332457415,1721205046954,-500.0,0.0002219,2]
[332457416,1721205046963,-500.0,0.0002219,2]
[332457417,1721205046974,-500.0,0.0002219,2]
[332457418,1721205046984,-500.0,0.0002219,2]
[332457419,1721205046996,-500.0,0.0002219,2]
[332457420,1721205047006,-500.0,0.0002219,2]
[332457421,1721205047017,-500.0,0.0002219,2]
[332457422,1721205047029,-500.0,0.0002219,2]
[332457423,1721205047039,-671.14,0.0002219,2]
[332457424,1721205047049,-671.14,0.0002219,2]
[332457425,1721205047058,-671.14,0.0002219,2]
[332457426,1721205047069,-671.14,0.0002219,2]
[332457427,1721205047080,-671.14,0.0002219,2]
[332457428,1721205047090,-212.93583259,0.00022191,2]
[332457429,1721205047101,-501.77585729,0.00022191,2]
[332457430,1721205047111,-500.0,0.00022191,2]
[332457431,1721205047122,-500.0,0.00022191,2]
[332457432,1721205047133,-500.0,0.00022191,2]
[332457433,1721205047143,-500.0,0.00022191,2]
[332457434,1721205047153,-511.73100881,0.00022191,2]
[332457435,1721205047163,-500.0,0.00022191,2]
[332457436,1721205047173,-500.0,0.00022191,2]
[332457437,1721205047184,-465.53095664,0.00022191,2]
[332457438,1721205047194,-500.0,0.00022191,2]
[332457439,1721205047205,-491.77680068,0.00022191,2]
[332457440,1721205047217,-510.891384,0.00022191,2]
[332457442,1721205047227,-500.0,0.00022191,2]
[332457443,1721205047237,-500.0,0.00022191,2]
[332457444,1721205047247,-500.0,0.00022191,2]
[332457445,1721205047256,-500.0,0.00022191,2]
[332457446,1721205047266,-528.62653309,0.00022191,2]
[332457447,1721205047275,-500.0,0.00022191,2]
[332457448,1721205047285,-502.39493288,0.00022191,2]
[332457449,1721205047296,-501.54732919,0.00022191,2]